fUSD/lending_fUSD_20260121
["ID","MTS","AMOUNT","RATE_DAILY","PERIOD"]
[403000088,1769038231902,-130.57,0.00017997,2]
[403000089,1769038231983,-31.439748,0.00017997,2]
[403000090,1769038231993,-300.0,0.00017998,2]
[403000091,1769038232002,-1200.0,0.00017998,2]
[403000092,1769038232012,-550.0,0.00017998,2]
[403000093,1769038232022,-300.0,0.00017998,2]
[403000094,1769038232031,-300.0,0.00017998,2]
[403000095,1769038232041,-1000.0,0.00017999,2]
[403000096,1769038232050,-500.0,0.00017999,2]
[403000097,1769038232065,-291.5008879,0.00017999,2]
[403000098,1769038232075,-500.0,0.00017999,2]
[403000099,1769038232085,-500.0,0.00017999,2]
[403000101,1769038232095,-240.66725432,0.00017999,2]
[403000103,1769038232106,-500.0,0.00017999,2]
[403000104,1769038232115,-500.0,0.00017999,2]
[403000106,1769038232124,-500.0,0.00017999,2]
[403000108,1769038232134,-500.0,0.00017999,2]
[403000110,1769038232143,-500.0,0.00017999,2]
[403000112,1769038232153,-542.91365237,0.00017999,2]
[403000113,1769038232162,-500.0,0.00017999,2]
[403000130,1769038232172,-500.0,0.00017999,2]
[403000134,1769038232382,-500.0,0.00017999,2]
[403000135,1769038232391,-500.0,0.00017999,2]
[403000137,1769038232401,-500.0,0.00017999,2]
[403000139,1769038232410,-500.0,0.00017999,2]
[403000141,1769038232420,-500.0,0.00017999,2]
[403000143,1769038232429,-2643.46867376,0.00018,2]
[403000145,1769038232441,-922.48,0.00018,2]
[403000172,1769038237777,-7922.97235588,0.00018,2]
[403000173,1769038237823,-252.02371514,0.00018,2]
[403000174,1769038237836,-4144.89034362,0.00018,2]
[403000175,1769038237911,-401.89531663,0.00018,2]
[403000176,1769038237924,-788.98791427,0.00018,2]
[403000177,1769038237934,-7359.4695229,0.00018,2]
[403000178,1769038237946,-3918.6439888,0.00018,2]
[403000179,1769038237957,-443.21634454,0.00018,2]
[403000180,1769038238005,-2467.56,0.00018,2]
[403000191,1769038239902,-500.0,0.00017999,2]
[403000192,1769038239912,-805838.06060679,0.00018,2]
[403000193,1769038239920,-150.00008768,0.00018025,2]
[403000194,1769038239929,-10021.74816798,0.00018027,2]
[403000195,1769038239939,-7121.58,0.00018342,2]
[403000196,1769038239948,-226.0,0.00018421,2]
[403000197,1769038239957,-150.00008768,0.00019294,6]
[403000198,1769038239966,-532.0,0.000196,2]
[403000199,1769038239975,-420.0,0.00019638,2]
[403000200,1769038239983,-1680.0,0.00019734,2]
[403000201,1769038239992,-1067.73274922,0.0002,30]
[403000202,1769038240001,-7500.0,0.0002,2]
[403000203,1769038240009,-3950.0,0.0002,2]
[403000204,1769038240018,-1293.66679101,0.0002,2]
[403000205,1769038240027,-1044.25996146,0.0002,2]
[403000206,1769038240036,-2861.70210159,0.0002,2]
[403000207,1769038240045,-12915.32759444,0.0002,2]
[403000208,1769038240054,-152.0,0.0002,2]
[403000209,1769038240063,-8720.0,0.0002001,2]
[403000210,1769038240072,-150.0,0.000205,7]
[403000211,1769038240081,-150.00008768,0.00020563,10]
[403000212,1769038240091,-10021.74816797,0.00020792,2]
[403000213,1769038240102,-510.23,0.00020884,2]
[403000214,1769038240112,-510.23,0.00020939,2]
[403000215,1769038240121,-510.23,0.00020994,2]
[403000216,1769038240129,-510.23,0.00021049,2]
[403000217,1769038240139,-1131.48,0.00021062,2]
[403000218,1769038240148,-999.99,0.00021062,2]
[403000219,1769038240157,-1193.97,0.00021084,2]
[403000220,1769038240166,-9999.99,0.00021084,2]
[403000221,1769038240174,-150.99,0.00021084,2]
[403000222,1769038240183,-9999.99,0.00021084,2]
[403000223,1769038240192,-4724.31,0.00021085,2]
[403000224,1769038240201,-150.99,0.00021085,2]
[403000225,1769038240209,-499.99,0.00021085,2]
[403000226,1769038240219,-2110.06,0.00021085,2]
[403000227,1769038240228,-510.23,0.00021104,2]
[403000228,1769038240238,-510.23,0.00021159,2]
[403000229,1769038240248,-510.23,0.00021214,2]
[403000230,1769038240264,-510.23,0.00021269,2]
[403000231,1769038240273,-510.23,0.00021324,2]
[403000232,1769038240283,-161.01920204,0.00021332,2]
[403000233,1769038240292,-8515.54,0.00021332,2]
[403000234,1769038240303,-510.23,0.00021379,2]
[403000235,1769038240315,-206.45,0.00021405,2]
[403000236,1769038240324,-587.0,0.00021427,2]
[403000237,1769038240335,-510.23,0.00021434,2]
[403000238,1769038240344,-510.23,0.00021489,2]
[403000239,1769038240353,-351.81540832,0.000215,2]
[403000240,1769038240363,-921.8122,0.000215,2]
[403000241,1769038240372,-3744.33,0.00021543,2]
[403000242,1769038240381,-510.23,0.00021544,2]
[403000243,1769038240389,-167.01,0.0002159,3]
[403000244,1769038240399,-3674.801,0.00021597,2]
[403000245,1769038240408,-372.066,0.00021597,2]
[403000246,1769038240417,-510.23,0.00021599,2]
[403000247,1769038240426,-150.0,0.00021599,2]
[403000248,1769038240435,-1088.30112546,0.00021599,5]
[403000249,1769038240444,-1088.30112546,0.00021599,5]
[403000250,1769038240453,-1200.0,0.00021638,2]
[403000251,1769038240463,-510.23,0.00021654,2]
[403000252,1769038240472,-510.23,0.00021708,2]
[403000253,1769038240481,-510.23,0.00021763,2]
[403000254,1769038240490,-510.23,0.00021818,2]
[403000255,1769038240499,-150.00008768,0.00021832,15]
[403000256,1769038240508,-510.23,0.00021873,2]
[403000257,1769038240517,-510.23,0.00021928,2]
[403000258,1769038240527,-439.84,0.000223,7]
[403000259,1769038240536,-150.0,0.00023099,2]
[403000260,1769038240545,-150.00008768,0.00023101,19]
[403000261,1769038240554,-399.0,0.00023379,2]
[403000262,1769038240565,-10021.74816797,0.00023557,2]
[403000263,1769038240574,-250.0,0.00023643,2]
[403000264,1769038240583,-1131.48,0.00023695,2]
[403000265,1769038240592,-2373.61322628,0.00023879,2]
[403000266,1769038240601,-154.19,0.0002389,2]
[403000267,1769038240610,-150.00008768,0.0002437,23]
[403000268,1769038240619,-234.04112718,0.00024426,2]
[403000269,1769038240628,-532.76082309,0.00024426,2]
[403000270,1769038240637,-500.0,0.00024426,2]
[403000271,1769038240647,-228.76475724,0.00024426,2]
[403000272,1769038240656,-500.0,0.00024426,2]
[403000273,1769038240665,-596.70379019,0.00024426,2]
[403000274,1769038240674,-501.59915555,0.00024426,2]
[403000275,1769038240683,-500.0,0.00024426,2]
[403000276,1769038240692,-500.0,0.00024426,2]
[403000277,1769038240701,-500.0,0.00024426,2]
[403000278,1769038240711,-500.0,0.00024426,2]
[403000279,1769038240720,-500.0,0.00024426,2]
[403000280,1769038240729,-500.0,0.00024426,2]
[403000281,1769038240739,-500.0,0.00024426,2]
[403000282,1769038240894,-500.0,0.00024426,2]
[403000283,1769038240935,-500.0,0.00024426,2]
[403000284,1769038240945,-500.0,0.00024426,2]
[403000285,1769038240954,-500.0,0.00024426,2]
[403000286,1769038240963,-500.0,0.00024426,2]
[403000287,1769038240972,-500.0,0.00024426,2]
[403000288,1769038240981,-172.75069061,0.0002463,2]
[403000289,1769038240991,-150.0,0.0002463,2]
[403000290,1769038240999,-187.43,0.00024851,2]
[403000291,1769038241008,-6471.42586281,0.000249,2]
[403000292,1769038241021,-910.21948755,0.000249,2]
[403000293,1769038241080,-361.49519731,0.000249,2]
[403000294,1769038241144,-500.0,0.00017999,2]
[403000295,1769038241153,-17660.51989803,0.000249,2]
[403000321,1769038242967,-151.0,0.00018021,2]
[403000322,1769038242975,-3149.0,0.000249,2]
[403000323,1769038242987,-7702.047212,0.000249,2]
[403000324,1769038242996,-351.81540832,0.00025116,2]
[403000325,1769038243005,-439.84,0.000252,7]
[403000326,1769038243014,-150.00008768,0.00025639,27]
[403000327,1769038243023,-155.92,0.00025764,2]
[403000328,1769038243034,-708.59652638,0.00026258,2]
[403000329,1769038243046,-1586.27402487,0.00026258,2]
[403000330,1769038243199,-78.74267503,0.00026258,2]
[403000331,1769038243208,-640.55242497,0.00026322,2]
[403000332,1769038243221,-4592.69195026,0.00026322,2]
[403000333,1769038243235,-3843.3423495,0.00026322,2]
[403000342,1769038245726,-945.16144324,0.00026322,2]
[403000343,1769038245736,-731.11760246,0.00026328,120]
[403000344,1769038245747,-400.36239754,0.00026328,120]
[403000345,1769038245757,-150.00008768,0.00026907,31]
[403000346,1769038245767,-603.0,0.00027397,7]
[403000347,1769038245776,-1000.0,0.00027944,2]
[403000348,1769038245786,-1000.0,0.00028,15]
[403000349,1769038245795,-150.00008768,0.00028176,35]
[403000350,1769038245804,-500.0,0.0002823,20]
[403000351,1769038245814,-500.0,0.0002823,60]
[403000352,1769038245823,-1481.96210965,0.00028638,2]
[403000353,1769038245835,-891.65111663,0.00028638,2]
[403000354,1769038245844,-351.81540832,0.00028732,2]
[403000355,1769038245854,-1131.48,0.00028961,120]
[403000356,1769038245863,-2000.0,0.00029,120]
[403000357,1769038245872,-2000.0,0.00029,120]
[403000358,1769038245882,-187.223,0.00029,120]
[403000359,1769038245892,-1000.0,0.00029,30]
[403000360,1769038245902,-1000.0,0.00029,15]
[403000361,1769038245912,-10021.74816797,0.00029087,2]
[403000362,1769038245922,-500.0,0.00029285,2]
[403000363,1769038245931,-197.01,0.000294,14]
[403000364,1769038245940,-181.87611829,0.00029414,2]
[403000365,1769038245950,-395.08537102,0.00029414,2]
[403000366,1769038245959,-150.00008768,0.00029445,38]
[403000367,1769038245968,-150.0,0.00029507,60]
[403000368,1769038245979,-500.0,0.00029507,60]
[403000369,1769038245988,-150.0,0.00029507,2]
[403000370,1769038245997,-500.0,0.00029507,60]
[403000371,1769038246006,-500.0,0.00029507,60]
[403000373,1769038246015,-500.0,0.00029507,60]
[403000375,1769038246024,-500.0,0.00029507,60]
[403000376,1769038246033,-150.0,0.00029507,2]
[403000377,1769038246043,-150.0,0.00029507,2]
[403000378,1769038246053,-500.0,0.00029507,60]
[403000379,1769038246062,-150.0,0.00029507,2]
[403000380,1769038246071,-289.38461163,0.00029562,60]
[403000381,1769038246080,-500.0,0.00029562,60]
[403000382,1769038246089,-500.0,0.00029562,60]
[403000383,1769038246099,-500.0,0.00029562,60]
[403000384,1769038246108,-500.0,0.00029562,60]
[403000385,1769038246117,-500.0,0.00029562,60]
[403000386,1769038246127,-500.0,0.00029562,60]
[403000387,1769038246137,-150.0,0.00029562,2]
[403000388,1769038246145,-500.0,0.00029617,60]
[403000389,1769038246155,-500.0,0.00029617,60]
[403000390,1769038246163,-500.0,0.00029617,60]
[403000391,1769038246173,-350.0,0.00029617,60]
[403000392,1769038246182,-500.0,0.00029617,60]
[403000393,1769038246191,-500.0,0.00029617,60]
[403000394,1769038246201,-250.0,0.00029617,2]
[403000395,1769038246211,-500.0,0.00029671,30]
[403000396,1769038246222,-500.0,0.00029671,60]
[403000397,1769038246232,-305.53291889,0.00029671,60]
[403000398,1769038246241,-500.0,0.00029671,60]
[403000399,1769038246250,-500.0,0.00029671,60]
[403000400,1769038246262,-288.76036297,0.00029726,60]
[403000401,1769038246271,-500.0,0.00029726,60]
[403000402,1769038246280,-178.0,0.00029726,60]
[403000403,1769038246289,-323.0,0.00029781,60]
[403000404,1769038246300,-4755.35489317,0.0003,5]
[403000405,1769038246310,-2000.0,0.0003,7]
[403000406,1769038246319,-1020.07,0.0003,30]
[403000407,1769038246330,-7121.58,0.00030123,2]
[403000408,1769038246339,-3744.33,0.0003016,2]
[403000409,1769038246348,-2000.0,0.000304,2]
[403000410,1769038246357,-2000.0,0.0003065,120]
[403000411,1769038246366,-2000.0,0.0003065,120]
[403000412,1769038246375,-2000.0,0.0003065,120]
[403000413,1769038246384,-1000.0,0.0003065,30]
[403000414,1769038246393,-1000.0,0.0003065,30]
[403000415,1769038246402,-1000.0,0.0003065,30]
[403000416,1769038246411,-150.00008768,0.00030714,42]
[403000417,1769038246420,-2373.61322628,0.00031017,2]
[403000418,1769038246430,-1131.48,0.00031594,120]
[403000419,1769038246439,-10021.74816797,0.00031853,2]
[403000420,1769038246449,-198.43,0.00031861,2]
[403000421,1769038246461,-150.00008768,0.00031983,46]
[403000422,1769038246471,-168.0,0.00032098,2]
[403000423,1769038246481,-439.84,0.000321,7]
[403000424,1769038246491,-216.22,0.0003216,2]
[403000425,1769038246502,-351.81540832,0.00032348,2]
[403000426,1769038246511,-168.0,0.00032445,2]
[403000427,1769038246522,-168.0,0.00032446,2]
[403000428,1769038246532,-408.0,0.00032626,2]
[403000429,1769038246541,-1268.0,0.00032626,2]
[403000430,1769038246550,-1203.0,0.00032626,2]
[403000431,1769038246559,-915.0,0.00032626,2]
[403000432,1769038246569,-2440.0,0.00032626,2]
[403000433,1769038246578,-3474.0,0.00032626,2]
[403000434,1769038246587,-4827.0,0.00032626,2]
[403000435,1769038246596,-500.0,0.00032877,7]
[403000436,1769038246606,-500.0,0.00032877,7]
[403000437,1769038246616,-500.0,0.00032877,7]
[403000438,1769038246626,-500.0,0.00032877,7]
[403000439,1769038246635,-500.0,0.00032877,7]
[403000440,1769038246644,-201.94511964,0.00032877,7]
[403000441,1769038246654,-313.42,0.000329,14]
[403000442,1769038246663,-168.0,0.00032922,2]
[403000443,1769038246673,-3000.0,0.0003301,2]
[403000444,1769038246683,-168.0,0.00033191,2]
[403000445,1769038246694,-150.00008768,0.00033252,49]
[403000446,1769038246715,-168.0,0.00033343,2]
[403000447,1769038246725,-168.0,0.00033353,2]
[403000448,1769038246734,-2373.61322628,0.00033396,2]
[403000449,1769038246744,-168.0,0.00033587,2]
[403000450,1769038246753,-168.0,0.00033636,2]
[403000451,1769038246762,-198.44,0.00033855,2]
[403000452,1769038246771,-2000.0,0.000341,2]
[403000453,1769038246781,-168.0,0.00034206,2]
[403000454,1769038246791,-150.00008768,0.00034521,53]
[403000455,1769038246800,-10021.74816797,0.00034618,2]
[403000456,1769038246810,-168.0,0.00034675,2]
[403000457,1769038246820,-439.84,0.000347,14]
[403000458,1769038246830,-532.0,0.000347,16]
[403000459,1769038246840,-168.0,0.0003471,2]
[403000460,1769038246849,-168.0,0.00034792,2]
[403000461,1769038246860,-168.0,0.00034866,2]
[403000462,1769038246870,-174.00958107,0.00035,30]
[403000463,1769038246880,-155.92,0.00035056,2]
[403000464,1769038246889,-168.0,0.00035059,2]
[403000465,1769038246899,-200.0,0.000352,2]
[403000466,1769038246908,-301.0,0.000352,2]
[403000467,1769038246918,-984.0,0.000352,2]
[403000468,1769038246928,-307.0,0.000352,2]
[403000469,1769038246937,-10475.0,0.00035331,5]
[403000470,1769038246947,-198.43,0.00035492,2]
[403000471,1769038246956,-172.75069061,0.00035589,120]
[403000472,1769038246966,-164.88,0.00035589,30]
[403000473,1769038246975,-276.0,0.00035626,2]
[403000474,1769038246984,-1268.0,0.00035626,2]
[403000475,1769038246993,-1203.0,0.00035626,2]
[403000476,1769038247003,-915.0,0.00035626,2]
[403000477,1769038247012,-1774.13901971,0.00035626,2]
[403000478,1769038247027,-665.86098029,0.00035626,2]
[403000479,1769038247036,-3474.0,0.00035626,2]
[403000480,1769038247046,-4825.0,0.00035626,2]
[403000481,1769038247055,-2373.61322628,0.00035775,2]
[403000482,1769038247069,-150.0000879,0.0003579,57]
[403000483,1769038247079,-3344.24944562,0.000358,60]
[403000484,1769038247088,-164.09,0.00035959,120]
[403000485,1769038247098,-351.81540832,0.00035963,2]
[403000486,1769038247108,-169.0,0.00036,30]
[403000487,1769038247118,-1730.33263101,0.00036,2]
[403000488,1769038247134,-276.02736899,0.00036,2]
[403000489,1769038247143,-8912.97263101,0.00036612,5]
[403000490,1769038247174,-853.41212699,0.00036612,5]
[403000491,1769038247186,-1708.02646224,0.00036612,5]
[403000492,1769038247196,-500.0,0.00036717,20]
[403000493,1769038247208,-444.16705852,0.00036717,60]
[403000494,1769038317891,61398.65141427,0.00018,30]
[403000506,1769039432069,-166.33,0.00016712,2]
[403000507,1769039432080,-300.0,0.00017997,2]
[403000508,1769039432090,-1200.0,0.00017997,2]
[403000509,1769039432100,-300.0,0.00017997,2]
[403000510,1769039432110,-1200.0,0.00017998,2]
[403000511,1769039432121,-150.00471756,0.00017998,2]
[403000512,1769039432132,-500.0,0.00017999,2]
[403000513,1769039432143,-500.0,0.00017999,2]
[403000514,1769039432152,-83.75920714,0.00017999,2]
[403000515,1769039432164,-416.24079286,0.00017999,2]
[403000516,1769039432173,-286.2968313,0.00017999,2]
[403000517,1769039432187,-213.7031687,0.00017999,2]
[403000518,1769039432196,-500.0,0.00017999,2]
[403000519,1769039432205,-506.26751507,0.00017999,2]
[403000520,1769039432220,-555.83294148,0.00017999,2]
[403000521,1769039432239,-500.0,0.00017999,2]
[403000522,1769039432256,-500.0,0.00017999,2]
[403000523,1769039432265,-500.0,0.00017999,2]
[403000524,1769039432274,-500.0,0.00017999,2]
[403000525,1769039432283,-500.0,0.00017999,2]
[403000526,1769039432292,-500.0,0.00017999,2]
[403000528,1769039432301,-500.0,0.00017999,2]
[403000530,1769039432310,-4077.33642377,0.00018384,2]
[403000532,1769039432319,-150.00471756,0.00019267,6]
[403000533,1769039432328,-532.0,0.000196,2]
[403000535,1769039432337,-420.0,0.00019637,2]
[403000536,1769039432346,-1680.0,0.00019733,2]
[403000539,1769039432355,-150.99,0.00019797,2]
[403000541,1769039432364,-8003.86523342,0.00019797,2]
[403000544,1769039432386,-511.67476658,0.00019797,2]
[403000546,1769039432397,-223.24312993,0.00019797,2]
[403000548,1769039432409,-776.74687007,0.00019797,2]
[403000550,1769039432418,-29.10112993,0.00019797,2]
[403000553,1769039432430,-121.88887007,0.00019797,2]
[403000555,1769039432440,-206.12957813,0.00019797,2]
[403000558,1769039432462,-9793.86042187,0.00019797,2]
[403000560,1769039432471,-1461.01844588,0.00019797,2]
[403000563,1769039432490,-16.85155412,0.00019797,2]
[403000565,1769039432499,-356.46844588,0.00019797,2]
[403000570,1769039432529,-837.50155412,0.00019797,2]
[403000572,1769039432539,-746.81387642,0.00019797,2]
[403000574,1769039432550,-635.06612358,0.00019797,2]
[403000576,1769039432559,-484.87401834,0.00020145,2]
[403000579,1769039432581,-600.11131002,0.00020145,2]
[403000590,1769039437929,-114.41467164,0.00020145,2]
[403000591,1769039437938,-2110.06,0.00020145,2]
[403000592,1769039437948,-150.0,0.000205,7]
[403000593,1769039437957,-665.36702589,0.000205,2]
[403000594,1769039437969,-2418.07525,0.000205,2]
[403000595,1769039437980,-1680.96,0.000205,2]
[403000596,1769039437991,-353.43393972,0.000205,2]
[403000600,1769039438268,-2021.60009793,0.000205,2]
[403000602,1769039438279,-1778.05688613,0.000205,2]
[403000603,1769039438290,-813.00596327,0.000205,2]
[403000604,1769039438302,-269.49083706,0.000205,2]
[403000605,1769039438311,-499.99,0.000205,2]
[403000606,1769039438321,-161.01920204,0.00021311,2]
[403000607,1769039438330,-587.0,0.00021426,2]
[403000608,1769039438339,-504.0770936,0.00021599,2]
[403000609,1769039438350,-500.0,0.00021599,2]
[403000610,1769039438359,-500.0,0.00021599,2]
[403000611,1769039438369,-500.0,0.00021599,2]
[403000612,1769039438379,-500.0,0.00021599,2]
[403000613,1769039438388,-366.53,0.00021599,2]
[403000614,1769039438397,-500.0,0.00021599,2]
[403000615,1769039438407,-500.0,0.00021599,2]
[403000616,1769039438417,-297.53155324,0.00021599,2]
[403000617,1769039438428,-202.46844676,0.00021599,2]
[403000618,1769039438437,-986.47062976,0.00021637,2]
[403000619,1769039438448,-1364.52937024,0.00021637,2]
[403000620,1769039438457,-150.00471756,0.00021805,15]
[403000621,1769039438467,-250.0,0.00022083,2]
[403000622,1769039438478,-150.00471756,0.00023073,19]
[403000623,1769039438488,-699.0,0.00023378,2]
[403000624,1769039438497,-345.37,0.00023661,2]
[403000625,1769039438506,-150.00471756,0.00024342,23]
[403000626,1769039438515,-345.37,0.0002503,2]
[403000627,1769039438524,-150.00471756,0.00025611,27]
[403000628,1769039438534,-1328.6256111,0.0002581,2]
[403000629,1769039438549,-5046.2843889,0.0002581,2]
[403000630,1769039438558,-229.61894689,0.00026052,2]
[403000631,1769039438571,-770.38105311,0.00026052,2]
[403000632,1769039438582,-1500.0,0.00026054,120]
[403000633,1769039438592,-236.56448866,0.00026082,2]
[403000634,1769039438607,-263.43551134,0.00026082,2]
[403000635,1769039438619,-1676.56449866,0.00026102,2]
[403000636,1769039438631,-369.32,0.00026102,2]
[403000637,1769039438651,-490.0,0.00026102,2]
[403000638,1769039438662,-302.64238328,0.00026102,2]
[403000642,1769039440002,-151.0,0.00018218,2]
[403000643,1769039440012,-803.72283817,0.00026102,2]
[403000644,1769039440071,-1357.75027989,0.00026102,2]
[403000645,1769039440080,-150.00471756,0.0002688,31]
[403000647,1769039440090,-172.31624469,0.00027377,2]
[403000649,1769039440101,-298.51436949,0.00027377,2]
[403000650,1769039440441,-234.24938582,0.00027377,2]
[403000651,1769039440450,-455.47585789,0.00027418,2]
[403000652,1769039440461,-435.88463301,0.00027418,2]
[403000653,1769039440472,-354.53810429,0.00027418,2]
[403000654,1769039440483,-1087.37140481,0.00027418,2]
[403000655,1769039440492,-500.0,0.00027671,2]
[403000657,1769039440502,-150.00471756,0.00028149,35]
[403000658,1769039440512,-166.66,0.00028204,2]
[403000659,1769039440521,-234.04112718,0.0002823,60]
[403000660,1769039440530,-500.0,0.0002823,60]
[403000661,1769039440539,-705.08,0.00028403,2]
[403000663,1769039440548,-150.00471756,0.00029418,38]
[403000665,1769039440557,-705.08,0.0002943,2]
[403000667,1769039440566,-150.08,0.000295,14]
[403000668,1769039440579,-188.10570727,0.00029577,14]
[403000669,1769039440588,-705.08,0.00030457,2]
[403000670,1769039440597,-166.66,0.00030532,2]
[403000671,1769039440606,-158.75607451,0.00030668,120]
[403000672,1769039440618,-150.00471756,0.00030687,42]
[403000673,1769039440628,-319.02542327,0.00030849,2]
[403000685,1769039443040,-222.97946918,0.00019082,2]
[403000686,1769039443050,-3708.05405437,0.00030849,2]
[403000687,1769039443061,-24800.92052236,0.00030849,2]
[403000688,1769039443071,-331.84076451,0.00031077,28]
[403000689,1769039443081,-496.41393761,0.00031077,28]
[403000690,1769039443091,-671.6655,0.00031077,28]
[403000691,1769039443100,-705.08,0.00031483,2]
[403000692,1769039443110,-184.8007681,0.00031811,46]
[403000693,1769039443119,-150.00471756,0.00031955,46]
[403000694,1769039443129,-166.66,0.00032859,2]
[403000695,1769039443138,-508.0,0.00033,14]
[403000696,1769039443148,-508.0,0.00033151,30]
[403000697,1769039443157,-226.0,0.00033198,2]
[403000698,1769039443166,-150.00471756,0.00033224,49]
[403000699,1769039443175,-2000.0,0.000337,2]
[403000700,1769039443184,-350.0,0.000337,60]
[403000701,1769039443194,-350.0,0.000337,60]
[403000702,1769039443206,-350.0,0.000337,60]
[403000703,1769039443215,-350.0,0.000337,60]
[403000704,1769039443224,-350.0,0.000337,60]
[403000705,1769039443234,-350.0,0.000337,60]
[403000706,1769039443244,-350.0,0.000337,60]
[403000707,1769039443255,-350.0,0.000337,60]
[403000708,1769039443264,-350.0,0.000337,60]
[403000709,1769039443274,-350.0,0.000337,60]
[403000710,1769039443284,-350.0,0.000337,60]
[403000711,1769039443294,-350.0,0.000337,60]
[403000712,1769039443304,-350.0,0.000337,60]
[403000713,1769039443314,-350.0,0.000337,60]
[403000714,1769039443324,-350.0,0.000337,60]
[403000715,1769039443333,-350.0,0.000337,60]
[403000716,1769039443343,-350.0,0.000337,60]
[403000717,1769039443352,-350.0,0.000337,60]
[403000718,1769039443362,-350.0,0.000337,60]
[403000719,1769039443371,-350.0,0.000337,60]
[403000720,1769039443381,-205.16,0.00033754,30]
[403000721,1769039443390,-164.1,0.00033835,120]
[403000722,1769039443399,-2253.07727621,0.00034225,2]
[403000723,1769039443408,-921.8122,0.00034226,2]
[403000724,1769039443417,-150.77803218,0.00034226,2]
[403000725,1769039443428,-6288.26279796,0.000343,2]
[403000726,1769039443437,-5973.62387352,0.00034316,2]
[403000727,1769039443447,-167.01,0.00034316,3]
[403000728,1769039443457,-155.529359,0.00034323,14]
[403000729,1769039443467,-155.529359,0.00034323,14]
[403000730,1769039443476,-393.65707249,0.00034325,7]
[403000731,1769039443485,-500.0,0.00034325,7]
[403000732,1769039443494,-300.21612441,0.00034325,7]
[403000733,1769039443503,-500.0,0.00034325,7]
[403000734,1769039443512,-500.0,0.00034325,7]
[403000737,1769039443521,-500.0,0.00034325,7]
[403000740,1769039443530,-500.0,0.00034325,7]
[403000742,1769039443539,-500.0,0.00034325,7]
[403000744,1769039443548,-554.23000477,0.00034325,7]
[403000746,1769039443557,-500.0,0.00034325,7]
[403000748,1769039443570,-500.0,0.00034325,7]
[403000749,1769039443579,-500.0,0.00034325,7]
[403000750,1769039443588,-500.0,0.00034325,7]
[403000751,1769039443597,-500.0,0.00034325,7]
[403000752,1769039443607,-500.0,0.00034325,7]
[403000753,1769039443616,-500.0,0.00034325,7]
[403000754,1769039443625,-500.0,0.00034325,7]
[403000755,1769039443635,-500.0,0.00034325,7]
[403000756,1769039443645,-500.0,0.00034325,7]
[403000757,1769039443655,-281.39658074,0.00034325,7]
[403000758,1769039443665,-500.0,0.00034325,7]
[403000759,1769039443675,-500.0,0.00034325,7]
[403000760,1769039443684,-500.0,0.00034325,7]
[403000761,1769039443694,-500.0,0.00034325,7]
[403000762,1769039443705,-500.0,0.00034325,7]
[403000763,1769039443715,-500.0,0.00034325,7]
[403000764,1769039443725,-500.0,0.00034325,7]
[403000765,1769039443735,-500.0,0.00034325,7]
[403000766,1769039443745,-500.0,0.00034325,7]
[403000767,1769039443754,-500.0,0.00034325,7]
[403000768,1769039443763,-500.0,0.00034325,7]
[403000769,1769039443772,-500.0,0.00034325,7]
[403000770,1769039443782,-500.0,0.00034325,7]
[403000771,1769039443791,-500.0,0.00034325,7]